Workbook

Sheet Fasi 1-5
B1: Fase 1 | C1: Piano Investimenti | D1: Importo | E1: Ammortamenti Annui
C2: Brevetti | D2: 500000 | E2: =+D2/20 -> 25000
C3: Impianti | D3: 1000000 | E3: =+D3/10 -> 100000
C4: Attrezzature | D4: 800000 | E4: =+D4/12 -> 66666.66667
C5: Autocarri | D5: 100000 | E5: =+D5/4 -> 25000
C6: Totale | D6: =SUM(D2:D5) -> 2400000 | E6: =SUM(E2:E5) -> 216666.6667
D7: Rata | E7: Quota Capitale | F7: Interessi
B8: 1° Finanziamento | C8: Finanziamento (7 anni, 5%) | D8: =+PMT(5%,7,D6-100000) -> -397485.5824 | E8: =+D8-F8 -> -296609.8615 | F8: =+IPMT(5%,2,7,D6-100000) -> -100875.7209
B9: 2° Finanziamento | C9: Finanziamento (4 anni, 5%) | D9: =+PMT(5%,4,D5) -> -28201.18326 | E9: =+D9-F9 -> -23201.18326 | F9: =+IPMT(5%,1,4,D5) -> -5000
B11: Fase 2 | C11: Costi Fissi Industriali | D11: Importo
C12: Costo del lavoro | D12: 220000
C13: Utenze | D13: 12000
C14: Manutenzioni | D14: 55000
C15: Assicurazioni | D15: 25000
C16: Consulenze | D16: 28000
C17: Totale | D17: =SUM(D12:D16) -> 340000
B19: Fase 3 | C19: Costi Variabili Unitari | D19: Importo | E19: Incidenza sul prezzo di vendita
C20: Ricavo per Metro Tessuto Greggio | D20: 3.5
C21: Costo del Filato | D21: 2.5 | E21: =+D21/D20 -> 0.7142857143
C22: Costo dell'energia | D22: 0.28 | E22: =+D22/D20 -> 0.08
C23: Provvigioni | D23: 0.28 | E23: =+D23/D20 -> 0.08
C24: Imballaggi | D24: 0.1 | E24: =+D24/D20 -> 0.02857142857
C25: Tot. Costi Variabili | D25: =SUM(D21:D24) -> 3.16 | E25: =+D25/D20 -> 0.9028571429
C26: M.d.C. Unitario | D26: =+D20-D25 -> 0.34 | E26: =+D26/D20 -> 0.09714285714
B29: Fase 3b-3c | C29: Margine di Produzione | F29: Incidenza su magazzino M.P.
C30: Costo Industriale pieno per Metro T.G. | D30: 3.15 | F30: Incidenza su 100%
C31: =+C21 -> Costo del Filato | D31: =+D21 -> 2.5 | E31: =+D31/$D$30 -> 0.7936507937 | F31: =+E31/(E31+E33) -> 0.9615384615
C32: =+C22 -> Costo dell'energia | D32: =+D22 -> 0.28 | E32: =+D32/$D$30 -> 0.08888888889 | F32: 0
C33: =+C24 -> Imballaggi | D33: =+D24 -> 0.1 | E33: 0.03174603175 | F33: =+E33/(E33+E31) -> 0.03846153846
C34: =+C25 -> Tot. Costi Variabili | D34: =SUM(D31:D33) -> 2.88 | E34: =+D34/D30 -> 0.9142857143
C35: M.d.P. Unitario | D35: =+D30-D34 -> 0.27 | E35: =+D35/D30 -> 0.08571428571 | F35: =SUM(F31:F33) -> 1
D37: PESI
C38: Ponderazione Margini per calcolo Valore della Produzione di Break Even | D38: 0.9970720429 | E38: =+(D49-D56+'Fase 6'!D11)/D49 -> 0.9970720357 | F38: =+D38-E38 -> 7.148799774e-09
D39: =100%-D38 -> 0.002927957114
C40: M.d.c. Ponderato | D40: =+D38*E26+E35*D39 -> 0.09710939478
B42: Fase 4 | C42: Costi Fissi Operativi | D42: =+D17 -> 340000
B43: Stima primo break even | C43: Finanziamento Piano Investimenti | D43: =-D8-D9 -> 425686.7657
C44: Interessi Passivi a breve (Fase 7b) | D44: 140207.4305 | E44: =-'Fase 7-7c'!D25 -> 140207.4305 | F44: =+D44-E44 -> 0
B45: Flusso Fiscale | C45: Imposte Anno 1 | D45: =+'Fase 6'!G8 -> 35757.55808
C46: Acconto = 100% Imposte Anno 1 | D46: =+'Fase 6'!G8 -> 35757.55808
B47: Uscite Finanziarie Fisse | C47: Somma Flussi in Uscita | D47: =SUM(D42:D46) -> 977409.3123
B49: Valore della Produzione | C49: Break Even Finanziario | D49: =+D47/D40 -> 10065033.51 | E49: =+"(Flussi in uscita/M.d.C.% = "&TEXT(D40,"0,00%")&")" -> (Flussi in uscita/M.d.C.% = 9,71%)
B51: Fase 5
B52: Stima CCNC Attivo | C52: Acquisti M.P. Giornalieri | D52: =+(D49/365)*(E21+E24)*D38+(D49/365)*(E31+E33)*D39 -> 20491.27254
C53: Magazzino Mat. Prima | D53: =+D52*E53 -> 819650.9017 | E53: 40 | F53: gg
C55: Costo del Venduto Giornaliero | D55: =+(D17+E6+((E21+E22+E24)*D49*D38)+((E31+E32+E33)*D49*D39))/365 -> 24223.13912
C56: Magazzino P. Finito | D56: =+D55*E56 -> 726694.1737 | E56: 30 | F56: gg
C58: Fatturato Giornaliero | D58: =+(D49-D56+'Fase 6'!D11)/365 -> 27494.69438 | E58: Fatturato/365
C59: Crediti V/Clienti | D59: =+D58*E59*(1+IVA!C2) -> 4025223.258 | E59: 120 | F59: gg
C61: Acquisti Giornalieri | D61: =+D52+(D14/365) -> 20641.95747
B62: Stima CCNC Passivo | C62: Debiti V/Fornitori | D62: =+D61*E62*(1+IVA!C2) -> 3021982.574 | E62: 120 | F62: gg
C64: CCNC | D64: =+D59+D53+D56-D62 -> 2549585.759

Sheet IVA
B1: Momento 0
B2: Aliquota Iva in vigore | C2: 0.22
B3: Credito Anno 1 | C3: =+'Fase 6'!D12 -> 682929.5144
B4: Iva su Investimenti | C4: =+'Fasi 1-5'!D5*C2 -> 22000 | D4: a Credito
C6: 1 | D6: 2 | E6: 3 | F6: 4 | G6: 5 | H6: 6 | I6: 7 | J6: 8 | K6: 9 | L6: 10 | M6: 11 | N6: 12
B7: Sviluppo Iva Mensile
B8: Credito | C8: =+(('Fasi 1-5'!D17-'Fasi 1-5'!D15-'Fasi 1-5'!D12)/12*C2)-(SUM('Fase 7-7c'!D7:D10)/12*C2) -> 167211.5985 | D8: =+C8 -> 167211.5985 | E8: =+D8 -> 167211.5985 | F8: 167211.5985 | G8: 167211.5985 | H8: 167211.5985 | I8: 167211.5985 | J8: 167211.5985 | K8: 167211.5985 | L8: 167211.5985 | M8: 167211.5985 | N8: 167211.5985
B9: Debito | C9: =+'Fase 7-7c'!D3/12*C2 -> 183985.3299 | D9: =+C9 -> 183985.3299 | E9: 183985.3299 | F9: 183985.3299 | G9: 183985.3299 | H9: 183985.3299 | I9: 183985.3299 | J9: 183985.3299 | K9: 183985.3299 | L9: 183985.3299 | M9: 183985.3299 | N9: 183985.3299
B11: Saldo a Credito | C11: =+C4+C3+C8-C9 -> 688155.7831 | D11: =+C11+D8-D9-D10 -> 671382.0517 | E11: 654608.3203 | F11: 637834.5889 | G11: 621060.8575 | H11: =+G11+H8-H9-H10 -> 604287.1261 | I11: =+H11+I8-I9-I10 -> 587513.3947 | J11: 570739.6633 | K11: 553965.9319 | L11: 537192.2005 | M11: 520418.4691 | N11: 503644.7378

Sheet Fase 6
B1: Fase 6 | C1: Investimenti e Coperture al Momento 1
C3: Attivo Immobilizzato | D3: 2108333.333 | F3: Posizione Finanziaria Netta | G3: 5212788.577
C4: Brevetti | D4: 475000 | F4: Pos. Finanziaria Netta a M/L | G4: 2017514.418
C5: Impianti | D5: 900000 | F5: Pos. Finanziaria Netta a Breve | G5: 3195274.16
C6: Attrezzature | D6: 733333.3333
C8: Capitale Circolante | D8: 3695274.16 | F8: Posizione Tributaria Netta | G8: 35757.55808
C9: Crediti V/Clienti | D9: 3599726.747
C10: Magazzino Mat. Prima | D10: 881642.4451 | F10: Mezzi Propri | G10: 555061.3577
C11: Magazzino P. Finito | D11: 697224.1153 | F11: Equity | G11: 500000
C12: Credito Iva | D12: 682929.5144 | F12: Utile dell'esercizio | G12: 55061.35768
C13: Debiti V/Fornitori | D13: -2166248.662
C14: Totale Investimenti | D14: 5803607.493 | F14: Totale Coperture | G14: 5803607.493

Sheet Fase 7-7c
B1: Fase 7a | C1: Conto Economico al Momento 2
C3: Fatturato | D3: =+D5-D4 -> 10035563.45
C4: Variazione magazzino P.F. | D4: =-'Fase 6'!D11+'Fasi 1-5'!D56 -> 29470.05841
C5: Valore della Produzione | D5: =+'Fasi 1-5'!D49 -> 10065033.51
C7: =+'Fasi 1-5'!C21 -> Costo del Filato | D7: =-$D$5*'Fasi 1-5'!E21*'Fasi 1-5'!D38-D5*'Fasi 1-5'!E31*'Fasi 1-5'!D39-D11*'Fasi 1-5'!F31 -> -7132041.283
C8: =+'Fasi 1-5'!C22 -> Costo dell'energia | D8: =-$D$5*'Fasi 1-5'!E22*'Fasi 1-5'!D38-D5*'Fasi 1-5'!E32*'Fasi 1-5'!D39 -> -805464.6361
C9: =+'Fasi 1-5'!C23 -> Provvigioni | D9: =-$D$3*'Fasi 1-5'!E23 -> -802845.076
C10: =+'Fasi 1-5'!C24 -> Imballaggi | D10: =-$D$5*'Fasi 1-5'!E24*'Fasi 1-5'!D38-D5*'Fasi 1-5'!E33*'Fasi 1-5'!D39-D11*'Fasi 1-5'!F33 -> -285281.6513
C11: Variazione magazzino M.P. | D11: =-'Fase 6'!D10+'Fasi 1-5'!D53 -> -61991.54346
C12: Costi Variabili | D12: =SUM(D7:D11) -> -9087624.19
C13: =+'Fasi 1-5'!C12 -> Costo del lavoro | D13: =-'Fasi 1-5'!D12 -> -220000
C14: =+'Fasi 1-5'!C13 -> Utenze | D14: =-'Fasi 1-5'!D13 -> -12000
C15: =+'Fasi 1-5'!C14 -> Manutenzioni | D15: =-'Fasi 1-5'!D14 -> -55000
C16: =+'Fasi 1-5'!C15 -> Assicurazioni | D16: =-'Fasi 1-5'!D15 -> -25000
C17: =+'Fasi 1-5'!C16 -> Consulenze | D17: =-'Fasi 1-5'!D16 -> -28000
C18: Costi Fissi | D18: =SUM(D13:D17) -> -340000
C19: EBITDA/MOL | D19: =+D5+D12+D18 -> 637409.3181
C20: Ammortamenti | D20: =-'Fasi 1-5'!E6 -> -216666.6667
C21: EBIT/Red.Operativo | D21: =+D19+D20 -> 420742.6514
C22: Interessi passivi a lungo | D22: =+'Fasi 1-5'!F8+'Fasi 1-5'!F9 -> -105875.7209
B25: Fase 7b | C25: Interessi passivi a breve | D25: =-'Fase 7b'!C27 -> -140207.4305 | E25: 0.05 | F25: su PFN a Breve Iniziale
A26: (si veda foglio dedicato) | C26: Utile Ante Imposte | D26: =+D21+D22+D25 -> 174659.5001
B29: Fase 7c | C29: Imposte | D29: =IF(D26<0,(-(D26-D22-D25)*G30),(-(G29*D26+G30*(+D26-D25-D22)))) -> -58327.24342 | F29: IRES | G29: 0.24
C30: Utile Netto | D30: =+D26+D29 -> 116332.2566 | F30: IRAP | G30: 0.039

Sheet Fase 7b
B3: Proxy PFN Finale
A4: 1 | B4: PFN Iniziale | C4: =+'Fase 6'!G5 -> 3195274.16
B6: Flussi di Cassa
B7: Mol | C7: =+'Fase 7-7c'!D19 -> 637409.3181
B8: CCNC Iniziale | C8: =+'Fase 6'!D8 -> 3695274.16
B9: CCNC Finale | C9: =+'Fasi 1-5'!D64+IVA!N11 -> 3053230.497
B10: Delta CCNC | C10: =+C8-C9 -> 642043.6632
A11: A | B11: Cash Flow operativo | C11: =+C7+C10 -> 1279452.981
B12: Ammortamenti | C12: =+'Fase 7-7c'!D20 -> -216666.6667
B13: Investimenti Netti Iniziali | C13: =+'Fase 6'!D3 -> 2108333.333
B14: Investimenti Netti Finali | C14: =+'Fase 7b'!C13+'Fasi 1-5'!D5-'Fasi 1-5'!E6 -> 1991666.667
B15: Delta Investimenti | C15: =+C14-C13 -> -116666.6667
A16: B | B16: Flusso per Investimenti | C16: =+C12-C15 -> -100000
B17: Flusso per Debito a Medio Lungo | C17: =+'Fasi 1-5'!D8+'Fasi 1-5'!D9 -> -425686.7657
B18: Erogazioni a medio lungo | C18: =+'Fasi 1-5'!D5 -> 100000
A19: C | B19: Flusso netto debito a M/L | C19: =+C17+C18 -> -325686.7657
A20: D | B20: Cash Flow Fiscale | C20: =-'Fase 6'!G8*2 -> -71515.11616
A21: E | B21: Flusso Equity | C21: 0
A23: 2 = A+B+C+D | B23: Flussi in uscita | C23: =+C11+C16+C19+C20 -> 782251.0995
A25: 1+2 | B25: PFN a Breve Finale pre Oneri Finanziari | C25: =+C4-C23 -> 2413023.06
B27: Oneri Finanziari | C27: =+AVERAGE(C25,C4)*D27 -> 140207.4305 | D27: 0.05
B29: PFN a Breve Finale post Oneri Finanziari | C29: =+C25+C27 -> 2553230.491

Sheet Fase 8
B1: Fase 8 | C1: Investimenti e Coperture al Momento 2
C3: Attivo Immobilizzato | D3: =+SUM(D4:D7) -> 1991666.667 | F3: Posizione Finanziaria Netta | G3: =SUM(G4:G5) -> 4350933.864
C4: =+'Fasi 1-5'!C2 -> Brevetti | D4: =+'Fase 6'!D4-'Fasi 1-5'!E2 -> 450000 | F4: Pos. Finanziaria Netta a M/L | G4: =+'Fase 6'!G4+'Fasi 1-5'!D5+'Fasi 1-5'!E8+'Fasi 1-5'!E9 -> 1797703.373
C5: =+'Fasi 1-5'!C3 -> Impianti | D5: =+'Fase 6'!D5-'Fasi 1-5'!E3 -> 800000 | F5: Pos. Finanziaria Netta a Breve | G5: =+D15-G4-G9-G11 -> 2553230.491
C6: =+'Fasi 1-5'!C4 -> Attrezzature | D6: =+'Fase 6'!D6-'Fasi 1-5'!E4 -> 666666.6667
C7: =+'Fasi 1-5'!C5 -> Autocarri | D7: =+'Fasi 1-5'!D5-'Fasi 1-5'!E5 -> 75000
C9: =+'Fase 6'!C8 -> Capitale Circolante | D9: =SUM(D10:D14) -> 3053230.497 | F9: Posizione Tributaria Netta | G9: =-'Fase 7-7c'!D29-'Fase 6'!G8 -> 22569.68534
C10: =+'Fase 6'!C9 -> Crediti V/Clienti | D10: =+'Fasi 1-5'!D59 -> 4025223.258
C11: =+'Fase 6'!C10 -> Magazzino Mat. Prima | D11: =+'Fasi 1-5'!D53 -> 819650.9017 | F11: Mezzi Propri | G11: =+G12+G13 -> 671393.6143
C12: =+'Fase 6'!C11 -> Magazzino P. Finito | D12: =+'Fasi 1-5'!D56 -> 726694.1737 | F12: Equity | G12: =500000+'Fase 6'!G12 -> 555061.3577
C13: Credito Iva | D13: =+IVA!N11 -> 503644.7378 | F13: Utile dell'esercizio | G13: =+'Fase 7-7c'!D30 -> 116332.2566
C14: =+'Fase 6'!C13 -> Debiti V/Fornitori | D14: =-'Fasi 1-5'!D62 -> -3021982.574
C15: Totale Investimenti | D15: =+D3+D9 -> 5044897.163 | F15: Totale Coperture | G15: =+G9+G11+G3 -> 5044897.163

Sheet Fase 9
B1: Fase 9 | C1: Rendiconto Finanziario (Determ. Cash Flow)
D2: Anno 2
C4: EBITDA/M.O.L. | D4: =+'Fase 7-7c'!D19 -> 637409.3181
C5: CCNC Iniziale | D5: =+'Fase 6'!D8 -> 3695274.16
C6: CCNC Finale | D6: =+'Fase 8'!D9 -> 3053230.497
C7: Variazione Circolante | D7: =+D6-D5 -> -642043.6632
C9: CASH FLOW OPERATIVO | D9: =+D4-D7 -> 1279452.981
C11: Ammortamenti | D11: =+'Fase 7-7c'!D20 -> -216666.6667
C12: Investimenti Iniziali | D12: =+'Fase 6'!D3 -> 2108333.333
C13: Investimenti Finali | D13: =+'Fase 8'!D3 -> 1991666.667
C14: Investimenti a patrimonio | D14: =+D13-D12 -> -116666.6667
C15: Flusso di Cassa per investimenti | D15: =+D14-D11 -> 100000
C17: CASH FLOW DISPONIBILE | D17: =+D9-D15 -> 1179452.981
C19: Interessi Passivi netti | D19: =+'Fase 7-7c'!D22+'Fase 7-7c'!D25 -> -246083.1514
C20: PFN Iniziale | D20: =+'Fase 6'!G3 -> 5212788.577
C21: PFN Finale | D21: =+'Fase 8'!G3 -> 4350933.864
C22: Variazione dell'indebitamento finanziario | D22: =+D21-D20 -> -861854.7138
C23: Cash Flow per il servizio del debito | D23: =+D22+D19 -> -1107937.865
C25: Cash Flow per la gestione straordinaria | D25: 0
C27: Imposte d'esercizio | D27: =+'Fase 7-7c'!D29 -> -58327.24342
C28: PTN Iniziale | D28: =+'Fase 6'!G8 -> 35757.55808
C29: PTN Finale | D29: =+'Fase 8'!G9 -> 22569.68534
C30: Variazione debiti fiscali | D30: =+D29-D28 -> -13187.87274
C31: Cash Flow Fiscale | D31: =+D27+D30 -> -71515.11616
C33: Utile | D33: =+D4+D11+D19+D25+D27 -> 116332.2566
C34: Equity Iniziale | D34: =+'Fase 6'!G10 -> 555061.3577
C35: Equity Finale | D35: =+D6+D13-D21-D29 -> 671393.6143
C36: Variazione dei mezzi propri | D36: =D35-D34 -> 116332.2566
C37: CASH FLOW PER LA PROPRIETA' | D37: =D36-D33 -> -3.637978807e-10

Sheet Fase 10
B2: Fase 10 | C2: MdC | D2: =+'Fasi 1-5'!E26 -> 0.09714285714
C3: Costi Fissi Operativi | D3: =+'Fasi 1-5'!D42 -> 340000
C4: Valore della Produzione | D4: =+'Fasi 1-5'!D49 -> 10065033.51
C5: Interessi Passivi | D5: =+'Fase 7-7c'!D22+'Fase 7-7c'!D25 -> -246083.1514
C6: PFN | D6: =+'Fase 8'!G3 -> 4350933.864
